[Event "Late-Titled-Tuesday-Blitz-July-09-2024"]
[Site "Chess.com"]
[Date "2024.07.09"]
[Round "6"]
[White "BogdanDeac"]
[Black "mac0504"]
[Result "1-0"]
[WhiteElo "2968"]
[BlackElo "2765"]
[TimeControl "180+1"]
[EndTime "15:03:14 PDT"]
[Termination "BogdanDeac won by resignation"]

1. Nf3 {[%clk 0:03:00.9]} 1... Nc6 {[%clk 0:02:30.5]} 2. d4 {[%clk 0:02:54.8]}
2... e6 {[%clk 0:02:30.5]} 3. c4 {[%clk 0:02:53.8]} 3... Bb4+ {[%clk 0:02:26.5]}
4. Bd2 {[%clk 0:02:53.2]} 4... Bxd2+ {[%clk 0:02:24.8]} 5. Qxd2 {[%clk 0:02:53]}
5... d6 {[%clk 0:02:25.3]} 6. Nc3 {[%clk 0:02:51]} 6... Nf6 {[%clk 0:02:24.6]}
7. g3 {[%clk 0:02:49]} 7... O-O {[%clk 0:02:24.5]} 8. Bg2 {[%clk 0:02:48.7]}
8... Qe7 {[%clk 0:02:24.8]} 9. O-O {[%clk 0:02:45.9]} 9... e5 {[%clk 0:02:25.3]}
10. dxe5 {[%clk 0:02:41.5]} 10... Nxe5 {[%clk 0:02:18.5]} 11. b3 {[%clk
0:02:40.7]} 11... c6 {[%clk 0:02:13.1]} 12. Rad1 {[%clk 0:02:35.1]} 12... Rd8
{[%clk 0:02:13.1]} 13. Nd4 {[%clk 0:02:31.5]} 13... h6 {[%clk 0:01:52.5]} 14. f4
{[%clk 0:02:27.2]} 14... Ng6 {[%clk 0:01:48.7]} 15. e4 {[%clk 0:02:26.2]} 15...
Bd7 {[%clk 0:01:32.5]} 16. h3 {[%clk 0:02:21.6]} 16... a6 {[%clk 0:01:27.6]} 17.
Rfe1 {[%clk 0:02:19.9]} 17... c5 {[%clk 0:01:15.8]} 18. Nf5 {[%clk 0:02:15.3]}
18... Qf8 {[%clk 0:01:11.8]} 19. Nxd6 {[%clk 0:02:07.4]} 19... Bc6 {[%clk
0:00:53.3]} 20. e5 {[%clk 0:02:06.9]} 20... Bxg2 {[%clk 0:00:52.8]} 21. Qxg2
{[%clk 0:02:05.9]} 21... Ne8 {[%clk 0:00:50]} 22. Nxb7 {[%clk 0:02:05]} 22...
Rxd1 {[%clk 0:00:49.5]} 23. Rxd1 {[%clk 0:02:05.9]} 23... Ra7 {[%clk 0:00:48.6]}
24. Na4 {[%clk 0:02:03.2]} 24... Qe7 {[%clk 0:00:41.2]} 25. Naxc5 {[%clk
0:01:52.9]} 25... Nf8 {[%clk 0:00:41]} 26. Qc6 {[%clk 0:01:51.7]} 26... h5
{[%clk 0:00:39.3]} 27. h4 {[%clk 0:01:46]} 27... a5 {[%clk 0:00:38.3]} 28. Rd8
{[%clk 0:01:34.9]} 28... Nc7 {[%clk 0:00:29.6]} 29. Qd6 {[%clk 0:01:33.6]} 29...
Qxd6 {[%clk 0:00:25.3]} 30. exd6 {[%clk 0:01:33.3]} 30... Na6 {[%clk 0:00:23.1]}
31. d7 {[%clk 0:01:29.7]} 1-0

[Event "Late-Titled-Tuesday-Blitz-July-09-2024"]
[Site "Chess.com"]
[Date "2024.07.09"]
[Round "6"]
[White "WilsonPalencia21"]
[Black "anderson2361"]
[Result "0-1"]
[WhiteElo "2565"]
[BlackElo "2266"]
[TimeControl "180+1"]
[EndTime "15:03:19 PDT"]
[Termination "anderson2361 won on time"]

1. d4 {[%clk 0:01:58.2]} 1... d5 {[%clk 0:02:49.4]} 2. c4 {[%clk 0:01:55.2]}
2... e6 {[%clk 0:02:48.9]} 3. Nf3 {[%clk 0:01:52.8]} 3... Nf6 {[%clk 0:02:47.4]}
4. Nc3 {[%clk 0:01:51.4]} 4... a6 {[%clk 0:02:46.1]} 5. cxd5 {[%clk 0:01:41]}
5... exd5 {[%clk 0:02:47]} 6. Bg5 {[%clk 0:01:40.8]} 6... Be7 {[%clk 0:02:46.2]}
7. e3 {[%clk 0:01:39.4]} 7... O-O {[%clk 0:02:45.7]} 8. Bd3 {[%clk 0:01:36.3]}
8... Be6 {[%clk 0:02:45]} 9. O-O {[%clk 0:01:36]} 9... Nbd7 {[%clk 0:02:44]} 10.
Qc2 {[%clk 0:01:36]} 10... c6 {[%clk 0:02:42.3]} 11. Bf4 {[%clk 0:01:36.1]}
11... h6 {[%clk 0:02:39.7]} 12. h3 {[%clk 0:01:35.6]} 12... Nb6 {[%clk
0:02:33.9]} 13. a3 {[%clk 0:01:33.1]} 13... Bd6 {[%clk 0:02:34.1]} 14. Rfe1
{[%clk 0:01:28.7]} 14... Qc7 {[%clk 0:02:32.6]} 15. Bxd6 {[%clk 0:01:21.8]}
15... Qxd6 {[%clk 0:02:33.5]} 16. Ne5 {[%clk 0:01:22]} 16... Nbd7 {[%clk
0:02:33]} 17. f4 {[%clk 0:01:20.7]} 17... c5 {[%clk 0:02:33.4]} 18. f5 {[%clk
0:01:06.9]} 18... c4 {[%clk 0:02:28.9]} 19. Bf1 {[%clk 0:00:58.7]} 19... Nxe5
{[%clk 0:02:26.4]} 20. dxe5 {[%clk 0:00:58.4]} 20... Qxe5 {[%clk 0:02:27.3]} 21.
fxe6 {[%clk 0:00:58.4]} 21... fxe6 {[%clk 0:02:28.2]} 22. Qd2 {[%clk 0:00:56]}
22... b5 {[%clk 0:02:25.1]} 23. Rad1 {[%clk 0:00:53.1]} 23... Rad8 {[%clk
0:02:24.4]} 24. Qc2 {[%clk 0:00:25.5]} 24... Qg5 {[%clk 0:02:21]} 25. e4 {[%clk
0:00:15.7]} 25... d4 {[%clk 0:02:18.9]} 26. e5 {[%clk 0:00:14]} 26... Nh5 {[%clk
0:02:06.7]} 27. Ne4 {[%clk 0:00:06.8]} 27... Qxe5 {[%clk 0:02:07]} 28. Nf2
{[%clk 0:00:06.3]} 28... Qf6 {[%clk 0:02:05.4]} 29. Ng4 {[%clk 0:00:05.6]} 29...
Qg5 {[%clk 0:01:59.2]} 30. Qe2 {[%clk 0:00:05.4]} 30... Nf4 {[%clk 0:01:58.4]}
31. Qe4 {[%clk 0:00:05]} 31... h5 {[%clk 0:01:54.9]} 32. Ne5 {[%clk 0:00:02.3]}
32... Nxh3+ {[%clk 0:01:54.2]} 33. Kh2 {[%clk 0:00:03]} 33... Nf2 {[%clk
0:01:53.7]} 0-1

[Event "Late-Titled-Tuesday-Blitz-July-09-2024"]
[Site "Chess.com"]
[Date "2024.07.09"]
[Round "6"]
[White "gamboajp"]
[Black "Matalon"]
[Result "1-0"]
[WhiteElo "2169"]
[BlackElo "2470"]
[TimeControl "180+1"]
[EndTime "15:03:24 PDT"]
[Termination "gamboajp won by resignation"]

1. c4 {[%clk 0:02:59.5]} 1... Nf6 {[%clk 0:02:55.2]} 2. Nc3 {[%clk 0:02:58.6]}
2... e6 {[%clk 0:02:54.6]} 3. e4 {[%clk 0:02:59.2]} 3... Bb4 {[%clk 0:02:49.5]}
4. e5 {[%clk 0:02:58.4]} 4... Bxc3 {[%clk 0:02:48.2]} 5. dxc3 {[%clk 0:02:58.5]}
5... Ne4 {[%clk 0:02:48.4]} 6. Qg4 {[%clk 0:02:58.6]} 6... d5 {[%clk 0:02:37.7]}
7. Qxg7 {[%clk 0:02:58]} 7... Rf8 {[%clk 0:02:37]} 8. Bh6 {[%clk 0:02:57.9]}
8... Ke7 {[%clk 0:02:37.1]} 9. Qxf8+ {[%clk 0:02:51]} 9... Qxf8 {[%clk 0:02:37]}
10. Bxf8+ {[%clk 0:02:51.6]} 10... Kxf8 {[%clk 0:02:37.9]} 11. Bd3 {[%clk
0:02:48.3]} 11... Nc5 {[%clk 0:02:35.8]} 12. Be2 {[%clk 0:02:48.4]} 12... dxc4
{[%clk 0:02:34.5]} 13. Bxc4 {[%clk 0:02:47.9]} 13... b6 {[%clk 0:02:33.1]} 14.
O-O-O {[%clk 0:02:47.2]} 14... Bb7 {[%clk 0:02:32.1]} 15. f3 {[%clk 0:02:47.1]}
15... Nbd7 {[%clk 0:02:31.5]} 16. Re1 {[%clk 0:02:28.3]} 16... a6 {[%clk
0:02:17.7]} 17. b4 {[%clk 0:02:21.5]} 17... Na4 {[%clk 0:02:17.4]} 18. Kc2
{[%clk 0:02:19.1]} 18... b5 {[%clk 0:02:17.4]} 19. Bd3 {[%clk 0:02:16.2]} 19...
Bd5 {[%clk 0:02:16.4]} 20. a3 {[%clk 0:02:06.5]} 20... h6 {[%clk 0:01:58.4]} 21.
Be4 {[%clk 0:01:59.7]} 21... Bxe4+ {[%clk 0:01:42.5]} 22. Rxe4 {[%clk
0:01:59.1]} 22... Ndb6 {[%clk 0:01:41.4]} 23. Rd4 {[%clk 0:01:30.5]} 23... Nd5
{[%clk 0:01:28.6]} 24. Ne2 {[%clk 0:01:26.7]} 24... Ne3+ {[%clk 0:01:27.3]} 25.
Kd3 {[%clk 0:01:07.5]} 25... Nxg2 {[%clk 0:01:12.6]} 26. Rg1 {[%clk 0:01:06.9]}
26... c5 {[%clk 0:01:12.1]} 27. Re4 {[%clk 0:00:49.6]} 27... cxb4 {[%clk
0:01:02.2]} 28. axb4 {[%clk 0:00:41.8]} 28... Rd8+ {[%clk 0:01:02]} 29. Kc2
{[%clk 0:00:42]} 1-0

[Event "Late-Titled-Tuesday-Blitz-July-09-2024"]
[Site "Chess.com"]
[Date "2024.07.09"]
[Round "6"]
[White "yujiarun18"]
[Black "ManMish2"]
[Result "0-1"]
[WhiteElo "2259"]
[BlackElo "2602"]
[TimeControl "180+1"]
[EndTime "15:03:25 PDT"]
[Termination "ManMish2 won by resignation"]

1. e4 {[%clk 0:02:56.6]} 1... e5 {[%clk 0:02:59.4]} 2. Nf3 {[%clk 0:02:56.1]}
2... Nc6 {[%clk 0:02:59.5]} 3. Bc4 {[%clk 0:02:56.7]} 3... Nf6 {[%clk
0:02:58.8]} 4. d3 {[%clk 0:02:57.3]} 4... Bc5 {[%clk 0:02:58.9]} 5. O-O {[%clk
0:02:58]} 5... d6 {[%clk 0:02:59]} 6. c3 {[%clk 0:02:58.5]} 6... a6 {[%clk
0:02:59.4]} 7. Bb3 {[%clk 0:02:58.4]} 7... Ba7 {[%clk 0:02:59.5]} 8. Nbd2 {[%clk
0:02:58]} 8... O-O {[%clk 0:02:59.9]} 9. Re1 {[%clk 0:02:57.4]} 9... Ne7 {[%clk
0:02:59.9]} 10. d4 {[%clk 0:02:56.9]} 10... Ng6 {[%clk 0:02:59.2]} 11. Nf1
{[%clk 0:02:55]} 11... Bg4 {[%clk 0:02:58.5]} 12. Qd3 {[%clk 0:02:11.4]} 12...
Bxf3 {[%clk 0:02:47.2]} 13. gxf3 {[%clk 0:02:11.4]} 13... Nh5 {[%clk 0:02:45.5]}
14. Ng3 {[%clk 0:02:06.9]} 14... Nhf4 {[%clk 0:02:44.6]} 15. Bxf4 {[%clk
0:01:57.5]} 15... Nxf4 {[%clk 0:02:45.5]} 16. Qd2 {[%clk 0:01:54.6]} 16... Qh4
{[%clk 0:02:42.3]} 17. Kh1 {[%clk 0:01:49.8]} 17... g6 {[%clk 0:02:26.8]} 18.
Rg1 {[%clk 0:01:48.6]} 18... Kh8 {[%clk 0:02:22.9]} 19. Rad1 {[%clk 0:01:18.7]}
19... Rad8 {[%clk 0:02:19.7]} 20. dxe5 {[%clk 0:01:18.2]} 20... dxe5 {[%clk
0:02:18.6]} 21. Qc2 {[%clk 0:01:02.2]} 21... Qf6 {[%clk 0:01:20.7]} 22. Nf1
{[%clk 0:00:47.1]} 22... Nh3 {[%clk 0:01:16.5]} 23. Rxd8 {[%clk 0:00:38.9]}
23... Rxd8 {[%clk 0:01:16.9]} 24. Rg3 {[%clk 0:00:29.9]} 24... Nxf2+ {[%clk
0:01:16.3]} 25. Kg2 {[%clk 0:00:30.3]} 25... Nd3 {[%clk 0:01:15.3]} 26. Qe2
{[%clk 0:00:18.9]} 26... Nf4+ {[%clk 0:01:14.9]} 0-1

[Event "Late-Titled-Tuesday-Blitz-July-09-2024"]
[Site "Chess.com"]
[Date "2024.07.09"]
[Round "6"]
[White "AlexZambrano"]
[Black "ACollins05"]
[Result "1/2-1/2"]
[WhiteElo "2352"]
[BlackElo "2484"]
[TimeControl "180+1"]
[EndTime "15:03:36 PDT"]
[Termination "Game drawn by repetition"]

1. e4 {[%clk 0:02:56.4]} 1... e5 {[%clk 0:02:58]} 2. Nf3 {[%clk 0:02:55.9]} 2...
Nc6 {[%clk 0:02:57.9]} 3. Nc3 {[%clk 0:02:56]} 3... Nf6 {[%clk 0:02:56.9]} 4.
Bb5 {[%clk 0:02:56.5]} 4... Bb4 {[%clk 0:02:51.9]} 5. O-O {[%clk 0:02:55.4]}
5... O-O {[%clk 0:02:52.1]} 6. d3 {[%clk 0:02:55.1]} 6... Bxc3 {[%clk
0:02:50.6]} 7. bxc3 {[%clk 0:02:55.5]} 7... d6 {[%clk 0:02:50.9]} 8. Re1 {[%clk
0:02:41.2]} 8... Ne7 {[%clk 0:02:50.5]} 9. Nh4 {[%clk 0:02:40.1]} 9... a5 {[%clk
0:02:44.1]} 10. d4 {[%clk 0:02:36.7]} 10... Ng6 {[%clk 0:02:39.9]} 11. Nxg6
{[%clk 0:02:35.6]} 11... hxg6 {[%clk 0:02:40.8]} 12. Bg5 {[%clk 0:02:31.2]}
12... Be6 {[%clk 0:02:37.9]} 13. Qf3 {[%clk 0:02:26.6]} 13... c6 {[%clk
0:02:26.9]} 14. Bf1 {[%clk 0:02:25.3]} 14... a4 {[%clk 0:02:24.1]} 15. Rad1
{[%clk 0:02:23.8]} 15... Bxa2 {[%clk 0:02:19.2]} 16. dxe5 {[%clk 0:02:22.4]}
16... dxe5 {[%clk 0:02:13]} 17. Rxd8 {[%clk 0:02:20]} 17... Rfxd8 {[%clk
0:02:13.9]} 18. Bxf6 {[%clk 0:02:19.4]} 18... gxf6 {[%clk 0:02:14.8]} 19. Qxf6
{[%clk 0:02:19.4]} 19... Be6 {[%clk 0:02:15.1]} 20. Qxe5 {[%clk 0:02:18.2]}
20... a3 {[%clk 0:02:15]} 21. c4 {[%clk 0:02:08.4]} 21... a2 {[%clk 0:02:11.6]}
22. h4 {[%clk 0:02:07.2]} 22... Rd2 {[%clk 0:02:02.2]} 23. Bd3 {[%clk
0:02:02.2]} 23... b5 {[%clk 0:01:56.1]} 24. Qc3 {[%clk 0:01:48.9]} 24... bxc4
{[%clk 0:01:49.7]} 25. Qxd2 {[%clk 0:01:46.7]} 25... cxd3 {[%clk 0:01:49.9]} 26.
Qxd3 {[%clk 0:01:35.9]} 26... Rb8 {[%clk 0:01:47.9]} 27. c4 {[%clk 0:01:27.8]}
27... Rb4 {[%clk 0:01:46.5]} 28. h5 {[%clk 0:00:35.3]} 28... gxh5 {[%clk
0:01:42.3]} 29. Qd8+ {[%clk 0:00:32.5]} 29... Kh7 {[%clk 0:01:40.3]} 30. Qg5
{[%clk 0:00:16.1]} 30... Rb1 {[%clk 0:01:36.1]} 31. Qxh5+ {[%clk 0:00:14.8]}
31... Kg7 {[%clk 0:01:33.6]} 32. Qg5+ {[%clk 0:00:14.9]} 32... Kh7 {[%clk
0:01:34]} 33. Qh5+ {[%clk 0:00:14.7]} 33... Kg8 {[%clk 0:01:30.9]} 34. Qg5+
{[%clk 0:00:14.2]} 34... Kf8 {[%clk 0:01:27.8]} 35. Qd8+ {[%clk 0:00:11.4]}
35... Kg7 {[%clk 0:01:28]} 36. Qg5+ {[%clk 0:00:11.9]} 36... Kh7 {[%clk
0:01:28.4]} 37. Qh5+ {[%clk 0:00:11.8]} 1/2-1/2

[Event "Late-Titled-Tuesday-Blitz-July-09-2024"]
[Site "Chess.com"]
[Date "2024.07.09"]
[Round "6"]
[White "enriquebutti"]
[Black "rionelG"]
[Result "1-0"]
[WhiteElo "2191"]
[BlackElo "2407"]
[TimeControl "180+1"]
[EndTime "15:03:40 PDT"]
[Termination "enriquebutti won on time"]

1. d4 {[%clk 0:02:59.1]} 1... d5 {[%clk 0:02:59.5]} 2. c4 {[%clk 0:02:58.3]}
2... e6 {[%clk 0:02:59.5]} 3. Nf3 {[%clk 0:02:57.7]} 3... Nf6 {[%clk 0:02:58.9]}
4. Nc3 {[%clk 0:02:57.3]} 4... c6 {[%clk 0:02:57.6]} 5. e3 {[%clk 0:02:56.2]}
5... Nbd7 {[%clk 0:02:57.3]} 6. Bd3 {[%clk 0:02:55.5]} 6... dxc4 {[%clk
0:02:57.3]} 7. Bxc4 {[%clk 0:02:55.2]} 7... b5 {[%clk 0:02:57.5]} 8. Bd3 {[%clk
0:02:54.7]} 8... Bb7 {[%clk 0:02:58]} 9. e4 {[%clk 0:02:51.2]} 9... b4 {[%clk
0:02:46.8]} 10. e5 {[%clk 0:02:35.4]} 10... Nd5 {[%clk 0:02:39.5]} 11. Nxd5
{[%clk 0:02:34.2]} 11... cxd5 {[%clk 0:02:35.5]} 12. Ng5 {[%clk 0:02:29.6]}
12... Be7 {[%clk 0:02:17.6]} 13. Qh5 {[%clk 0:02:26.3]} 13... g6 {[%clk
0:01:57.8]} 14. Qg4 {[%clk 0:02:24.2]} 14... Rc8 {[%clk 0:01:23.3]} 15. h4
{[%clk 0:02:19.1]} 15... h5 {[%clk 0:00:48.5]} 16. Qg3 {[%clk 0:02:17.2]} 16...
Qa5 {[%clk 0:00:17.4]} 17. Bd2 {[%clk 0:01:59.9]} 17... Qb6 {[%clk 0:00:16.1]}
18. Be3 {[%clk 0:01:57.1]} 18... b3 {[%clk 0:00:13.6]} 19. a3 {[%clk 0:01:55.4]}
19... Qa5+ {[%clk 0:00:12.4]} 20. Bd2 {[%clk 0:01:50.2]} 20... Qb6 {[%clk
0:00:12.3]} 21. Bc3 {[%clk 0:01:41.7]} 21... Rf8 {[%clk 0:00:08.2]} 22. O-O
{[%clk 0:01:32.6]} 22... Ba6 {[%clk 0:00:07.8]} 23. Rac1 {[%clk 0:01:28.6]}
23... Bxd3 {[%clk 0:00:07.1]} 24. Qxd3 {[%clk 0:01:27.7]} 24... Bxg5 {[%clk
0:00:03.1]} 25. hxg5 {[%clk 0:01:27.1]} 25... Ke7 {[%clk 0:00:01.5]} 26. Bb4+
{[%clk 0:01:23.4]} 26... Kd8 {[%clk 0:00:02]} 27. Bxf8 {[%clk 0:01:22.2]} 1-0

[Event "Late-Titled-Tuesday-Blitz-July-09-2024"]
[Site "Chess.com"]
[Date "2024.07.09"]
[Round "6"]
[White "zacachess"]
[Black "Djager97"]
[Result "1/2-1/2"]
[WhiteElo "2493"]
[BlackElo "2649"]
[TimeControl "180+1"]
[EndTime "15:03:42 PDT"]
[Termination "Game drawn by repetition"]

1. e4 {[%clk 0:02:59.4]} 1... e5 {[%clk 0:02:59.5]} 2. Nc3 {[%clk 0:02:59.1]}
2... Nf6 {[%clk 0:02:59.2]} 3. Bc4 {[%clk 0:02:59.2]} 3... Nc6 {[%clk
0:02:58.2]} 4. d3 {[%clk 0:02:58.6]} 4... Bc5 {[%clk 0:02:57.8]} 5. f4 {[%clk
0:02:58.5]} 5... exf4 {[%clk 0:02:58.7]} 6. Bxf4 {[%clk 0:02:57.7]} 6... d6
{[%clk 0:02:59.2]} 7. Qd2 {[%clk 0:02:38.3]} 7... O-O {[%clk 0:02:58.8]} 8. Nf3
{[%clk 0:02:31.9]} 8... Nd4 {[%clk 0:02:36.4]} 9. O-O-O {[%clk 0:02:22.7]} 9...
c6 {[%clk 0:02:36.2]} 10. Be3 {[%clk 0:01:56.3]} 10... Nxf3 {[%clk 0:02:26.5]}
11. gxf3 {[%clk 0:01:54.2]} 11... Bxe3 {[%clk 0:02:17.2]} 12. Qxe3 {[%clk
0:01:55.1]} 12... d5 {[%clk 0:02:17.9]} 13. e5 {[%clk 0:01:42.5]} 13... Nh5
{[%clk 0:02:02]} 14. Rhg1 {[%clk 0:00:56.1]} 14... dxc4 {[%clk 0:01:14]} 15. Rg5
{[%clk 0:00:55.4]} 15... g6 {[%clk 0:00:47]} 16. Rxh5 {[%clk 0:00:55.3]} 16...
gxh5 {[%clk 0:00:43.1]} 17. Rg1+ {[%clk 0:00:54.5]} 17... Kh8 {[%clk 0:00:43.2]}
18. Qh6 {[%clk 0:00:54.5]} 18... Rg8 {[%clk 0:00:38.3]} 19. Rxg8+ {[%clk
0:00:53.6]} 19... Qxg8 {[%clk 0:00:17.8]} 20. Qf6+ {[%clk 0:00:52.8]} 20... Qg7
{[%clk 0:00:18.2]} 21. Qd8+ {[%clk 0:00:52.9]} 21... Qg8 {[%clk 0:00:18.8]} 22.
Qf6+ {[%clk 0:00:53.2]} 22... Qg7 {[%clk 0:00:19.5]} 23. Qd8+ {[%clk 0:00:53.5]}
23... Qg8 {[%clk 0:00:20.2]} 24. Qf6+ {[%clk 0:00:54]} 1/2-1/2

[Event "Late-Titled-Tuesday-Blitz-July-09-2024"]
[Site "Chess.com"]
[Date "2024.07.09"]
[Round "6"]
[White "OparinGrigoriy"]
[Black "GHANDEEVAM2003"]
[Result "0-1"]
[WhiteElo "3011"]
[BlackElo "3188"]
[TimeControl "180+1"]
[EndTime "15:03:45 PDT"]
[Termination "GHANDEEVAM2003 won by resignation"]

1. d4 {[%clk 0:03:00.9]} 1... Nf6 {[%clk 0:02:59.3]} 2. Nf3 {[%clk 0:03:01.2]}
2... b6 {[%clk 0:02:58.8]} 3. g3 {[%clk 0:03:01]} 3... Bb7 {[%clk 0:02:58.6]} 4.
Bg2 {[%clk 0:03:01.6]} 4... g6 {[%clk 0:02:59]} 5. c4 {[%clk 0:03:01.3]} 5...
Bg7 {[%clk 0:02:58.8]} 6. O-O {[%clk 0:03:01.9]} 6... O-O {[%clk 0:02:59]} 7.
Re1 {[%clk 0:03:01.7]} 7... Na6 {[%clk 0:02:57.5]} 8. Bf4 {[%clk 0:02:56.4]}
8... Nh5 {[%clk 0:02:51]} 9. Be3 {[%clk 0:02:50.2]} 9... c5 {[%clk 0:02:49.4]}
10. Nc3 {[%clk 0:02:48.5]} 10... cxd4 {[%clk 0:02:36.3]} 11. Bxd4 {[%clk
0:02:48.2]} 11... Nc5 {[%clk 0:02:26.4]} 12. Bxg7 {[%clk 0:02:47.1]} 12... Kxg7
{[%clk 0:02:27.3]} 13. Rc1 {[%clk 0:02:35]} 13... Rc8 {[%clk 0:02:25.2]} 14. b4
{[%clk 0:02:29.1]} 14... Ne6 {[%clk 0:02:19.5]} 15. Nb5 {[%clk 0:02:29.4]} 15...
a6 {[%clk 0:02:06.3]} 16. Nbd4 {[%clk 0:02:29.6]} 16... Nf6 {[%clk 0:02:06.9]}
17. Nxe6+ {[%clk 0:02:26.3]} 17... dxe6 {[%clk 0:02:07.8]} 18. Qb3 {[%clk
0:02:08.3]} 18... Qc7 {[%clk 0:02:06.3]} 19. Red1 {[%clk 0:02:06.5]} 19... Rfd8
{[%clk 0:02:02.5]} 20. Rxd8 {[%clk 0:02:04.7]} 20... Rxd8 {[%clk 0:02:03.4]} 21.
a3 {[%clk 0:02:00.5]} 21... e5 {[%clk 0:01:57.4]} 22. Qc3 {[%clk 0:01:52.9]}
22... e4 {[%clk 0:01:50.7]} 23. Ne5 {[%clk 0:01:46.7]} 23... h5 {[%clk
0:01:28.1]} 24. c5 {[%clk 0:01:46.2]} 24... Kg8 {[%clk 0:01:12.9]} 25. c6 {[%clk
0:00:45.2]} 25... Bc8 {[%clk 0:01:12.1]} 26. h3 {[%clk 0:00:45.5]} 26... Rd5
{[%clk 0:00:59.3]} 27. Nc4 {[%clk 0:00:44.9]} 27... Qxc6 {[%clk 0:00:59.4]} 28.
Nxb6 {[%clk 0:00:45]} 28... Rd1+ {[%clk 0:00:59.3]} 29. Rxd1 {[%clk 0:00:36]}
29... Qxc3 {[%clk 0:00:59.8]} 30. Rd8+ {[%clk 0:00:36.3]} 30... Kg7 {[%clk
0:01:00.3]} 31. Rxc8 {[%clk 0:00:36.5]} 31... Qe1+ {[%clk 0:00:55.4]} 32. Bf1
{[%clk 0:00:36.7]} 32... e3 {[%clk 0:00:55.8]} 0-1

[Event "Late-Titled-Tuesday-Blitz-July-09-2024"]
[Site "Chess.com"]
[Date "2024.07.09"]
[Round "6"]
[White "Charodej1"]
[Black "MikeSailer"]
[Result "1-0"]
[WhiteElo "2395"]
[BlackElo "2104"]
[TimeControl "180+1"]
[EndTime "15:03:45 PDT"]
[Termination "Charodej1 won by checkmate"]

1. d4 {[%clk 0:03:00.9]} 1... d5 {[%clk 0:02:59.6]} 2. Nf3 {[%clk 0:03:00]} 2...
Nf6 {[%clk 0:02:59.2]} 3. c4 {[%clk 0:02:57.8]} 3... c6 {[%clk 0:02:58.7]} 4.
Nbd2 {[%clk 0:02:53.2]} 4... g6 {[%clk 0:02:55.1]} 5. g3 {[%clk 0:02:47.9]} 5...
Bg7 {[%clk 0:02:47.5]} 6. Bg2 {[%clk 0:02:42.5]} 6... O-O {[%clk 0:02:40.2]} 7.
O-O {[%clk 0:02:38]} 7... b6 {[%clk 0:02:38.5]} 8. b3 {[%clk 0:02:31.1]} 8...
Bb7 {[%clk 0:02:36.3]} 9. Bb2 {[%clk 0:02:30.6]} 9... Nbd7 {[%clk 0:02:31.2]}
10. Re1 {[%clk 0:02:28.3]} 10... a5 {[%clk 0:02:12.4]} 11. Rc1 {[%clk
0:02:25.8]} 11... a4 {[%clk 0:02:03.4]} 12. Qc2 {[%clk 0:02:14.2]} 12... axb3
{[%clk 0:01:58.7]} 13. axb3 {[%clk 0:02:13.7]} 13... Ra2 {[%clk 0:01:43.6]} 14.
Ra1 {[%clk 0:02:02.8]} 14... Rxa1 {[%clk 0:01:43.3]} 15. Rxa1 {[%clk 0:02:02.2]}
15... dxc4 {[%clk 0:01:32.5]} 16. bxc4 {[%clk 0:01:56.7]} 16... Qc7 {[%clk
0:01:25.4]} 17. e4 {[%clk 0:01:47.3]} 17... e5 {[%clk 0:01:17.8]} 18. Nxe5
{[%clk 0:01:32.3]} 18... Nxe5 {[%clk 0:01:17.3]} 19. dxe5 {[%clk 0:01:33.2]}
19... Nd7 {[%clk 0:01:17.6]} 20. f4 {[%clk 0:01:29]} 20... Nc5 {[%clk
0:01:11.2]} 21. Nb3 {[%clk 0:01:22.8]} 21... Nxb3 {[%clk 0:01:08.1]} 22. Qxb3
{[%clk 0:01:22.7]} 22... Ra8 {[%clk 0:01:06.7]} 23. Rxa8+ {[%clk 0:00:56.3]}
23... Bxa8 {[%clk 0:01:06.2]} 24. c5 {[%clk 0:00:52.3]} 24... bxc5 {[%clk
0:01:00.9]} 25. Bf1 {[%clk 0:00:49.6]} 25... Bf8 {[%clk 0:00:56.3]} 26. Bc4
{[%clk 0:00:45.9]} 26... Qb7 {[%clk 0:00:31.4]} 27. e6 {[%clk 0:00:45.2]} 27...
Qxb3 {[%clk 0:00:30.4]} 28. exf7# {[%clk 0:00:45.4]} 1-0

[Event "Late-Titled-Tuesday-Blitz-July-09-2024"]
[Site "Chess.com"]
[Date "2024.07.09"]
[Round "6"]
[White "protectiago"]
[Black "urano56"]
[Result "0-1"]
[WhiteElo "2169"]
[BlackElo "2421"]
[TimeControl "180+1"]
[EndTime "15:03:49 PDT"]
[Termination "urano56 won by resignation"]

1. d4 {[%clk 0:03:00]} 1... Nf6 {[%clk 0:02:59.6]} 2. c4 {[%clk 0:02:59.7]} 2...
e6 {[%clk 0:03:00.2]} 3. g3 {[%clk 0:02:59.7]} 3... d5 {[%clk 0:03:00.9]} 4. Nf3
{[%clk 0:02:59.7]} 4... Be7 {[%clk 0:03:01.6]} 5. Bg2 {[%clk 0:02:59.6]} 5...
O-O {[%clk 0:03:02.1]} 6. O-O {[%clk 0:02:59.2]} 6... dxc4 {[%clk 0:03:02.6]} 7.
Ne5 {[%clk 0:02:58]} 7... Nc6 {[%clk 0:03:02.5]} 8. Bxc6 {[%clk 0:02:56.7]} 8...
bxc6 {[%clk 0:03:03.4]} 9. Nxc6 {[%clk 0:02:57.1]} 9... Qe8 {[%clk 0:03:03.7]}
10. Nxe7+ {[%clk 0:02:57.7]} 10... Qxe7 {[%clk 0:03:04.6]} 11. Qa4 {[%clk
0:02:57.2]} 11... e5 {[%clk 0:03:03.2]} 12. dxe5 {[%clk 0:02:57.1]} 12... Qxe5
{[%clk 0:03:03.1]} 13. Qxc4 {[%clk 0:02:57.3]} 13... Be6 {[%clk 0:02:59.7]} 14.
Qd3 {[%clk 0:02:57.3]} 14... Rfd8 {[%clk 0:02:58]} 15. Qe3 {[%clk 0:02:57.3]}
15... Qh5 {[%clk 0:02:51.7]} 16. f3 {[%clk 0:02:57.2]} 16... Bc4 {[%clk
0:02:32.5]} 17. Nc3 {[%clk 0:02:56.7]} 17... Qh3 {[%clk 0:02:24.2]} 18. b3
{[%clk 0:02:25.2]} 18... Re8 {[%clk 0:02:17.6]} 19. Qf2 {[%clk 0:02:22.5]} 19...
Ba6 {[%clk 0:02:16.8]} 20. Re1 {[%clk 0:01:33.8]} 20... Re6 {[%clk 0:01:57.9]}
21. e4 {[%clk 0:00:48.3]} 21... Rd8 {[%clk 0:01:55.4]} 22. Bg5 {[%clk
0:00:46.5]} 22... Rd3 {[%clk 0:01:53.3]} 23. Bxf6 {[%clk 0:00:43]} 23... Rxf6
{[%clk 0:01:48.3]} 24. Re3 {[%clk 0:00:38.7]} 24... Qd7 {[%clk 0:01:43.1]} 25.
Rae1 {[%clk 0:00:37.2]} 25... Rd2 {[%clk 0:01:43.4]} 26. Ne2 {[%clk 0:00:33.8]}
26... g5 {[%clk 0:01:38.7]} 27. g4 {[%clk 0:00:15.7]} 27... Rc6 {[%clk 0:01:37]}
28. Qg3 {[%clk 0:00:14.6]} 28... Rcc2 {[%clk 0:01:37]} 29. h4 {[%clk 0:00:11.9]}
29... h6 {[%clk 0:01:36.6]} 30. hxg5 {[%clk 0:00:11.2]} 30... hxg5 {[%clk
0:01:37]} 31. Qf2 {[%clk 0:00:11.1]} 31... Rxa2 {[%clk 0:01:33.4]} 32. e5 {[%clk
0:00:11.1]} 32... Qb5 {[%clk 0:01:28.6]} 33. e6 {[%clk 0:00:10.3]} 33... fxe6
{[%clk 0:01:27.5]} 34. Rxe6 {[%clk 0:00:09.8]} 34... Rxe2 {[%clk 0:01:27.8]} 35.
R1xe2 {[%clk 0:00:09]} 35... Rxe2 {[%clk 0:01:26.5]} 36. Qxa7 {[%clk 0:00:08.7]}
36... Rxe6 {[%clk 0:01:24.8]} 0-1